[Event "Latvijas 2022. gada jauniešu čempionāta fināls"]
[Site "Riga, Latvia"]
[Date "2022.06.14"]
[Round "5.5"]
[White "Beniosev, Daniel"]
[Black "Andrusevics, Jegors"]
[Result "0-1"]
[TimeControl "3600+30"]
[WhiteElo "1401"]
[BlackElo "1569"]

1. e4 {[%clk 01:00:54]} {[%emt 00:00:03]} e6 {[%clk 00:59:59]} {[%emt
00:01:03]} 2. d4 {[%clk 00:59:15]} {[%emt 00:02:08]} d5 {[%clk 00:59:20]}
{[%emt 00:01:10]} 3. Nc3 {[%clk 00:58:54]} {[%emt 00:00:50]} Bb4 {[%clk
00:58:46]} {[%emt 00:01:04]} 4. Qg4 {[%clk 00:57:58]} {[%emt 00:01:27]} Kf8
{[%clk 00:56:54]} {[%emt 00:02:22]} 5. e5 {[%clk 00:57:25]} {[%emt 00:01:03]}
c5 {[%clk 00:57:07]} {[%emt 00:00:17]} 6. a3 {[%clk 00:57:22]} {[%emt
00:00:34]} Ba5 {[%clk 00:57:11]} {[%emt 00:00:25]} 7. dxc5 {[%clk 00:56:57]}
{[%emt 00:00:54]} Bxc3+ {[%clk 00:56:12]} {[%emt 00:01:30]} 8. bxc3 {[%clk
00:57:15]} {[%emt 00:00:11]} Qc7 {[%clk 00:56:27]} {[%emt 00:00:15]} 9. Nf3
{[%clk 00:57:23]} {[%emt 00:00:23]} Qxc5 {[%clk 00:56:14]} {[%emt 00:00:43]} 10.
Qb4 {[%clk 00:57:38]} {[%emt 00:00:15]} Qxb4 {[%clk 00:52:43]} {[%emt
00:04:02]} 11. cxb4 {[%clk 00:57:52]} {[%emt 00:00:13]} Bd7 {[%clk 00:52:46]}
{[%emt 00:00:29]} 12. Bd3 {[%clk 00:58:05]} {[%emt 00:00:18]} a6 {[%clk
00:52:49]} {[%emt 00:00:27]} 13. c4 {[%clk 00:57:25]} {[%emt 00:01:08]} Ne7
{[%clk 00:51:42]} {[%emt 00:01:38]} 14. Be3 {[%clk 00:56:32]} {[%emt 00:01:22]}
dxc4 {[%clk 00:51:22]} {[%emt 00:00:52]} 15. Bxc4 {[%clk 00:56:51]} {[%emt
00:00:09]} Bc6 {[%clk 00:51:32]} {[%emt 00:00:21]} 16. O-O {[%clk 00:57:03]}
{[%emt 00:00:18]} Nd7 {[%clk 00:51:49]} {[%emt 00:00:14]} 17. Bd4 {[%clk
00:55:38]} {[%emt 00:01:54]} Bxf3 {[%clk 00:49:54]} {[%emt 00:02:25]} 18. gxf3
{[%clk 00:55:49]} {[%emt 00:00:17]} Nc6 {[%clk 00:50:13]} {[%emt 00:00:13]} 19.
Be3 {[%clk 00:55:28]} {[%emt 00:00:50]} Ncxe5 {[%clk 00:49:59]} {[%emt
00:00:45]} 20. Be2 {[%clk 00:55:38]} {[%emt 00:00:18]} Rc8 {[%clk 00:49:56]}
{[%emt 00:00:35]} 21. f4 {[%clk 00:55:34]} {[%emt 00:00:34]} Nc4 {[%clk
00:49:46]} {[%emt 00:00:40]} 22. Rac1 {[%clk 00:55:49]} {[%emt 00:00:15]} b5
{[%clk 00:48:02]} {[%emt 00:02:15]} 23. Rfd1 {[%clk 00:56:08]} {[%emt
00:00:09]} Ke7 {[%clk 00:48:04]} {[%emt 00:00:28]} 24. Bd4 {[%clk 00:54:42]}
{[%emt 00:01:56]} Nxa3 {[%clk 00:46:27]} {[%emt 00:02:08]} 25. Ra1 {[%clk
00:55:05]} {[%emt 00:00:06]} Nc2 {[%clk 00:46:47]} {[%emt 00:00:10]} 26. Rxa6
{[%clk 00:55:30]} {[%emt 00:00:06]} Nxb4 {[%clk 00:46:38]} {[%emt 00:00:39]} 27.
Ra7 {[%clk 00:55:12]} {[%emt 00:00:48]} Nd5 {[%clk 00:45:22]} {[%emt 00:01:47]}
28. Bxb5 {[%clk 00:55:22]} {[%emt 00:00:20]} Rhd8 {[%clk 00:42:42]} {[%emt
00:03:09]} 29. f5 {[%clk 00:55:13]} {[%emt 00:00:40]} Rc7 {[%clk 00:38:52]}
{[%emt 00:04:19]} 30. fxe6 {[%clk 00:54:36]} {[%emt 00:01:08]} Rxa7 {[%clk
00:34:06]} {[%emt 00:05:15]} 31. Bxa7 {[%clk 00:54:05]} {[%emt 00:01:00]} fxe6
{[%clk 00:34:07]} {[%emt 00:00:29]} 32. Bc6 {[%clk 00:54:11]} {[%emt 00:00:25]}
N7f6 {[%clk 00:33:23]} {[%emt 00:01:14]} 33. Re1 {[%clk 00:53:23]} {[%emt
00:01:16]} Rc8 {[%clk 00:32:27]} {[%emt 00:01:27]} 34. Bb5 {[%clk 00:51:43]}
{[%emt 00:02:10]} Kd6 {[%clk 00:32:18]} {[%emt 00:00:39]} 35. Bd4 {[%clk
00:51:42]} {[%emt 00:00:31]} Nc3 {[%clk 00:31:00]} {[%emt 00:01:49]} 36. Bd3
{[%clk 00:49:11]} {[%emt 00:03:00]} h6 {[%clk 00:29:00]} {[%emt 00:02:30]} 37.
Kf1 {[%clk 00:49:17]} {[%emt 00:00:24]} Ncd5 {[%clk 00:29:03]} {[%emt
00:00:28]} 38. Ra1 {[%clk 00:48:58]} {[%emt 00:00:49]} Rc6 {[%clk 00:29:07]}
{[%emt 00:00:26]} 39. Bb5 {[%clk 00:49:19]} {[%emt 00:00:09]} Rc7 {[%clk
00:28:00]} {[%emt 00:01:37]} 40. Ra6+ {[%clk 00:49:18]} {[%emt 00:00:31]} Ke7
{[%clk 00:28:18]} {[%emt 00:00:12]} 41. Ke2 {[%clk 00:48:50]} {[%emt 00:00:57]}
Kf7 {[%clk 00:27:57]} {[%emt 00:00:52]} 42. Ra7 {[%clk 00:48:25]} {[%emt
00:00:55]} Rxa7 {[%clk 00:26:34]} {[%emt 00:01:53]} 43. Bxa7 {[%clk 00:48:50]}
{[%emt 00:00:06]} Nc3+ {[%clk 00:27:01]} {[%emt 00:00:03]} 44. Kd3 {[%clk
00:49:09]} {[%emt 00:00:10]} Nxb5 {[%clk 00:27:28]} {[%emt 00:00:03]} 45. Bc5
{[%clk 00:49:27]} {[%emt 00:00:13]} Nc7 {[%clk 00:27:49]} {[%emt 00:00:09]} 46.
Kd4 {[%clk 00:49:48]} {[%emt 00:00:08]} e5+ {[%clk 00:28:06]} {[%emt 00:00:13]}
47. Kd3 {[%clk 00:50:05]} {[%emt 00:00:13]} Ne6 {[%clk 00:28:28]} {[%emt
00:00:08]} 48. Be3 {[%clk 00:50:25]} {[%emt 00:00:10]} Ng4 {[%clk 00:28:42]}
{[%emt 00:00:16]} 49. Bb6 {[%clk 00:50:47]} {[%emt 00:00:08]} Nxh2 {[%clk
00:29:01]} {[%emt 00:00:11]} 50. Ke2 {[%clk 00:51:05]} {[%emt 00:00:12]} Ng4
{[%clk 00:29:26]} {[%emt 00:00:05]} 51. f3 {[%clk 00:51:29]} {[%emt 00:00:06]}
Nf6 {[%clk 00:29:42]} {[%emt 00:00:14]} 52. Bf2 {[%clk 00:51:47]} {[%emt
00:00:12]} Nd5 {[%clk 00:30:02]} {[%emt 00:00:10]} 53. Kd3 {[%clk 00:52:07]}
{[%emt 00:00:10]} Nd4 {[%clk 00:30:15]} {[%emt 00:00:18]} 54. Ke4 {[%clk
00:52:23]} {[%emt 00:00:14]} Ke6 {[%clk 00:30:40]} {[%emt 00:00:04]} 55. Bg3
{[%emt 00:00:15]} Nc6 {[%clk 00:30:46]} {[%emt 00:00:17]} 56. Bf2 {[%clk
00:53:02]} {[%emt 00:00:12]} Nf6+ {[%clk 00:31:10]} {[%emt 00:00:07]} 57. Ke3
{[%clk 00:51:55]} {[%emt 00:01:38]} Kf5 {[%clk 00:31:27]} {[%emt 00:00:13]} 58.
Bg3 {[%clk 00:52:16]} {[%emt 00:00:09]} g5 {[%clk 00:31:47]} {[%emt 00:00:09]}
59. Bf2 {[%clk 00:52:39]} {[%emt 00:00:07]} Nd5+ {[%clk 00:31:59]} {[%emt
00:00:18]} 60. Ke2 {[%clk 00:52:59]} {[%emt 00:00:09]} Nf4+ {[%clk 00:32:23]}
{[%emt 00:00:07]} 61. Kd2 {[%clk 00:53:20]} {[%emt 00:00:09]} h5 {[%clk
00:31:50]} {[%emt 00:01:03]} 62. Ke3 {[%clk 00:53:43]} {[%emt 00:00:07]} h4
{[%clk 00:32:12]} {[%emt 00:00:08]} 63. Bg1 {[%clk 00:54:09]} {[%emt 00:00:03]}
Nd4 {[%clk 00:32:36]} {[%emt 00:00:07]} 64. Bh2 {[%clk 00:54:30]} {[%emt
00:00:09]} h3 {[%clk 00:32:48]} {[%emt 00:00:18]} 65. Kf2 {[%clk 00:54:55]}
{[%emt 00:00:05]} g4 {[%clk 00:32:56]} {[%emt 00:00:23]} 66. Kg3 {[%clk
00:54:59]} {[%emt 00:00:25]} Nxf3 {[%clk 00:33:10]} {[%emt 00:00:16]} 67. Bg1
{[%clk 00:55:10]} {[%emt 00:00:19]} Ne2+ {[%clk 00:33:28]} {[%emt 00:00:12]} 68.
Kf2 {[%clk 00:55:31]} {[%emt 00:00:08]} Nfxg1 {[%clk 00:33:50]} {[%emt
00:00:10]} 69. Kf1 {[%clk 00:55:48]} {[%emt 00:00:12]} g3 {[%clk 00:34:07]}
{[%emt 00:00:13]} 70. Ke1 {[%clk 00:56:14]} {[%emt 00:00:04]} h2 {[%clk
00:34:27]} {[%emt 00:00:10]} 71. Kf1 {[%clk 00:56:40]} {[%emt 00:00:03]} h1=Q
{[%clk 00:34:47]} {[%emt 00:00:10]} 72. Ke1 {[%clk 00:57:02]} {[%emt 00:00:08]}
Nf3+ {[%clk 00:35:03]} {[%emt 00:00:14]} 73. Kxe2 {[%clk 00:57:26]} {[%emt
00:00:07]} Qe1+ {[%clk 00:35:22]} {[%emt 00:00:11]} 74. Kxf3 {[%clk 00:57:37]}
{[%emt 00:00:20]} Qf2# {[%clk 00:35:47]} {[%emt 00:00:05]} 0-1

[Event "Latvijas 2022. gada jauniešu čempionāta fināls"]
[Site "Riga, Latvia"]
[Date "2022.06.14"]
[Round "5.6"]
[White "Krakops, Martijs"]
[Black "Merzlovs, Timurs"]
[Result "1-0"]
[TimeControl "3600+30"]
[WhiteElo "1253"]
[BlackElo "1152"]

1. d4 {[%clk 01:00:54]} {[%emt 00:00:05]} d5 {[%clk 01:00:55]} {[%emt
00:00:06]} 2. Nf3 {[%clk 01:01:17]} {[%emt 00:00:08]} Nf6 {[%clk 01:01:06]}
{[%emt 00:00:19]} 3. Bf4 {[%clk 01:01:35]} {[%emt 00:00:11]} Bf5 {[%clk
01:00:56]} {[%emt 00:00:40]} 4. e3 {[%clk 01:01:53]} {[%emt 00:00:11]} e6
{[%clk 01:00:55]} {[%emt 00:00:32]} 5. c4 {[%clk 01:02:15]} {[%emt 00:00:08]}
Bb4+ {[%clk 01:00:02]} {[%emt 00:01:23]} 6. Nc3 {[%clk 01:02:35]} {[%emt
00:00:10]} O-O {[%clk 00:57:26]} {[%emt 00:03:07]} 7. Qb3 {[%clk 01:02:27]}
{[%emt 00:00:38]} Bxc3+ {[%clk 00:56:08]} {[%emt 00:01:47]} 8. bxc3 {[%clk
01:02:50]} {[%emt 00:00:07]} Qc8 {[%clk 00:55:04]} {[%emt 00:01:33]} 9. cxd5
{[%clk 01:02:37]} {[%emt 00:00:44]} Nxd5 {[%clk 00:55:14]} {[%emt 00:00:21]} 10.
Bg3 {[%clk 01:02:40]} {[%emt 00:00:26]} Nd7 {[%clk 00:55:16]} {[%emt 00:00:28]}
11. c4 {[%clk 01:02:42]} {[%emt 00:00:29]} N5f6 {[%clk 00:55:07]} {[%emt
00:00:38]} 12. Be2 {[%clk 01:01:42]} {[%emt 00:01:30]} c5 {[%clk 00:54:56]}
{[%emt 00:00:42]} 13. Bd6 {[%clk 01:01:41]} {[%emt 00:00:31]} Re8 {[%clk
00:54:58]} {[%emt 00:00:26]} 14. dxc5 {[%clk 01:01:45]} {[%emt 00:00:28]} Nxc5
{[%clk 00:55:14]} {[%emt 00:00:13]} 15. Bxc5 {[%clk 01:02:10]} {[%emt
00:00:05]} Qxc5 {[%clk 00:55:41]} {[%emt 00:00:03]} 16. O-O {[%clk 01:02:25]}
{[%emt 00:00:15]} b6 {[%clk 00:55:08]} {[%emt 00:01:04]} 17. Rfd1 {[%clk
01:02:15]} {[%emt 00:00:39]} Red8 {[%clk 00:54:40]} {[%emt 00:00:59]} 18. Nd4
{[%clk 01:02:28]} {[%emt 00:00:16]} Bg6 {[%clk 00:54:20]} {[%emt 00:00:50]} 19.
Bf3 {[%clk 01:02:47]} {[%emt 00:00:11]} Rac8 {[%clk 00:54:05]} {[%emt
00:00:44]} 20. Rac1 {[%clk 01:02:47]} {[%emt 00:00:31]} e5 {[%clk 00:53:59]}
{[%emt 00:00:36]} 21. Nb5 {[%clk 00:58:51]} {[%emt 00:04:26]} a6 {[%clk
00:53:03]} {[%emt 00:01:27]} 22. Na7 {[%clk 00:58:27]} {[%emt 00:00:53]} Rxd1+
{[%clk 00:51:47]} {[%emt 00:01:45]} 23. Rxd1 {[%clk 00:57:48]} {[%emt
00:01:10]} Re8 {[%clk 00:51:58]} {[%emt 00:00:17]} 24. Qa4 {[%clk 00:57:37]}
{[%emt 00:00:44]} e4 {[%clk 00:49:42]} {[%emt 00:02:45]} 25. Be2 {[%clk
00:57:50]} {[%emt 00:00:17]} h6 {[%clk 00:48:17]} {[%emt 00:01:55]} 26. Qxa6
{[%clk 00:57:40]} {[%emt 00:00:40]} Qg5 {[%clk 00:45:16]} {[%emt 00:03:31]} 27.
Qxb6 {[%clk 00:57:10]} {[%emt 00:01:01]} Re5 {[%clk 00:44:14]} {[%emt
00:01:31]} 28. Rd8+ {[%clk 00:57:03]} {[%emt 00:00:37]} Kh7 {[%clk 00:44:25]}
{[%emt 00:00:19]} 29. Qb8 {[%clk 00:57:19]} {[%emt 00:00:13]} Bh5 {[%clk
00:44:30]} {[%emt 00:00:26]} 30. Bxh5 {[%clk 00:56:53]} {[%emt 00:00:56]} Qxh5
{[%clk 00:44:45]} {[%emt 00:00:14]} 31. Nc6 {[%clk 00:56:17]} {[%emt 00:01:07]}
Rc5 {[%clk 00:44:36]} {[%emt 00:00:39]} 32. Rh8+ {[%clk 00:56:28]} {[%emt
00:00:19]} Kg6 {[%clk 00:44:56]} {[%emt 00:00:11]} 33. Ne7+ {[%clk 00:56:53]}
{[%emt 00:00:04]} Kg5 {[%clk 00:45:15]} {[%emt 00:00:11]} 1-0

[Event "Latvijas 2022. gada jauniešu čempionāta fināls"]
[Site "Riga, Latvia"]
[Date "2022.06.14"]
[Round "5.7"]
[White "Maklakova, Naomi"]
[Black "Sinicina, Jevgenija"]
[Result "1-0"]
[TimeControl "3600+30"]
[WhiteElo "1488"]
[BlackElo "1231"]

1. d4 {[%clk 01:00:49]} {[%emt 00:00:08]} Nf6 {[%clk 01:00:54]} {[%emt
00:00:08]} 2. Nf3 {[%clk 01:01:10]} {[%emt 00:00:09]} d5 {[%clk 01:01:03]}
{[%emt 00:00:21]} 3. Bf4 {[%clk 01:01:29]} {[%emt 00:00:11]} g6 {[%clk
01:01:07]} {[%emt 00:00:26]} 4. e3 {[%clk 01:00:28]} {[%emt 00:01:31]} Bg7
{[%clk 01:00:28]} {[%emt 00:01:10]} 5. Bd3 {[%clk 00:57:45]} {[%emt 00:03:12]}
O-O {[%clk 01:00:20]} {[%emt 00:00:37]} 6. Nbd2 {[%clk 00:57:50]} {[%emt
00:00:25]} c5 {[%clk 01:00:19]} {[%emt 00:00:31]} 7. c3 {[%clk 00:58:11]}
{[%emt 00:00:10]} Nc6 {[%clk 01:00:17]} {[%emt 00:00:32]} 8. Rc1 {[%clk
00:58:20]} {[%emt 00:00:22]} Bg4 {[%clk 01:00:14]} {[%emt 00:00:32]} 9. h3
{[%clk 00:58:20]} {[%emt 00:00:29]} Bxf3 {[%clk 01:00:28]} {[%emt 00:00:16]} 10.
Nxf3 {[%clk 00:58:22]} {[%emt 00:00:28]} Nd7 {[%clk 01:00:23]} {[%emt
00:00:36]} 11. O-O {[%clk 00:57:02]} {[%emt 00:01:49]} f6 {[%clk 00:59:43]}
{[%emt 00:01:10]} 12. e4 {[%clk 00:55:01]} {[%emt 00:02:32]} e5 {[%clk
00:58:33]} {[%emt 00:01:39]} 13. dxe5 {[%clk 00:53:51]} {[%emt 00:01:41]} fxe5
{[%clk 00:58:27]} {[%emt 00:00:36]} 14. Bg5 {[%clk 00:53:46]} {[%emt 00:00:34]}
Nf6 {[%clk 00:58:08]} {[%emt 00:00:50]} 15. Bxf6 {[%clk 00:51:08]} {[%emt
00:03:09]} Bxf6 {[%clk 00:57:10]} {[%emt 00:01:27]} 16. exd5 {[%clk 00:50:18]}
{[%emt 00:01:20]} Qxd5 {[%clk 00:57:01]} {[%emt 00:00:38]} 17. Qe2 {[%clk
00:50:37]} {[%emt 00:00:12]} Kh8 {[%clk 00:56:39]} {[%emt 00:00:51]} 18. Bc4
{[%clk 00:50:54]} {[%emt 00:00:14]} Qd6 {[%clk 00:56:33]} {[%emt 00:00:33]} 19.
Rcd1 {[%clk 00:50:51]} {[%emt 00:00:36]} Qe7 {[%clk 00:56:51]} {[%emt
00:00:12]} 20. Rfe1 {[%clk 00:51:08]} {[%emt 00:00:14]} Rad8 {[%clk 00:55:49]}
{[%emt 00:01:30]} 21. Bd5 {[%clk 00:50:32]} {[%emt 00:01:07]} Rfe8 {[%clk
00:54:18]} {[%emt 00:02:00]} 22. Qe4 {[%clk 00:48:16]} {[%emt 00:02:47]} Qc7
{[%clk 00:53:32]} {[%emt 00:01:14]} 23. h4 {[%clk 00:47:37]} {[%emt 00:01:11]}
Rd6 {[%clk 00:50:59]} {[%emt 00:03:03]} 24. h5 {[%clk 00:45:09]} {[%emt
00:02:58]} Bg7 {[%clk 00:50:45]} {[%emt 00:00:43]} 25. Ng5 {[%clk 00:44:36]}
{[%emt 00:01:04]} Rf6 {[%clk 00:48:44]} {[%emt 00:02:29]} 26. hxg6 {[%clk
00:44:17]} {[%emt 00:00:51]} h6 {[%clk 00:46:44]} {[%emt 00:02:29]} 27. Nf7+
{[%clk 00:43:47]} {[%emt 00:01:01]} Rxf7 {[%clk 00:46:29]} {[%emt 00:00:44]} 28.
gxf7 {[%clk 00:44:01]} {[%emt 00:00:18]} Rf8 {[%clk 00:46:37]} {[%emt
00:00:20]} 29. Bb3 {[%clk 00:43:08]} {[%emt 00:00:49]} Nd8 {[%clk 00:46:06]}
{[%emt 00:01:35]} 30. Bc2 {[%clk 00:43:25]} {[%emt 00:00:15]} Qxf7 {[%clk
00:45:44]} {[%emt 00:00:51]} 31. Qh7# {[%clk 00:43:49]} {[%emt 00:00:06]} 1-0

[Event "Latvijas 2022. gada jauniešu čempionāta fināls"]
[Site "Riga, Latvia"]
[Date "2022.06.14"]
[Round "5.8"]
[White "Vasiljeva, Sofja"]
[Black "Plauca, Lelde"]
[Result "1-0"]
[TimeControl "3600+30"]
[WhiteElo "1676"]
[BlackElo "1005"]

1. e4 {[%clk 01:00:57]} {[%emt 00:00:03]} e5 {[%clk 01:00:57]} {[%emt
00:00:04]} 2. Nf3 {[%clk 01:01:23]} {[%emt 00:00:04]} Nc6 {[%clk 01:01:21]}
{[%emt 00:00:05]} 3. Bb5 {[%clk 01:01:50]} {[%emt 00:00:03]} Nf6 {[%clk
01:01:38]} {[%emt 00:00:14]} 4. O-O {[%clk 01:02:10]} {[%emt 00:00:11]} a6
{[%clk 01:01:41]} {[%emt 00:00:27]} 5. Bxc6 {[%clk 01:02:24]} {[%emt 00:00:16]}
dxc6 {[%clk 01:01:47]} {[%emt 00:00:24]} 6. Nxe5 {[%clk 01:02:41]} {[%emt
00:00:12]} Bd6 {[%clk 01:01:06]} {[%emt 00:01:11]} 7. Nf3 {[%clk 01:02:55]}
{[%emt 00:00:16]} Be7 {[%clk 00:59:30]} {[%emt 00:02:06]} 8. d3 {[%clk
01:02:41]} {[%emt 00:00:44]} O-O {[%clk 00:58:45]} {[%emt 00:01:15]} 9. h3
{[%clk 01:02:47]} {[%emt 00:00:24]} Be6 {[%clk 00:57:19]} {[%emt 00:01:57]} 10.
Be3 {[%clk 01:01:27]} {[%emt 00:01:48]} b5 {[%clk 00:54:08]} {[%emt 00:03:41]}
11. Nbd2 {[%clk 00:59:25]} {[%emt 00:02:32]} c5 {[%clk 00:51:20]} {[%emt
00:03:19]} 12. Re1 {[%clk 00:58:46]} {[%emt 00:01:08]} Re8 {[%clk 00:49:38]}
{[%emt 00:02:12]} 13. a4 {[%clk 00:57:55]} {[%emt 00:01:22]} c6 {[%clk
00:47:26]} {[%emt 00:02:42]} 14. Bf4 {[%clk 00:57:28]} {[%emt 00:00:57]} Qc8
{[%clk 00:41:34]} {[%emt 00:06:23]} 15. Nf1 {[%clk 00:53:02]} {[%emt 00:04:55]}
Rd8 {[%clk 00:38:47]} {[%emt 00:03:17]} 16. Ng3 {[%clk 00:51:27]} {[%emt
00:02:04]} Nd7 {[%clk 00:35:39]} {[%emt 00:03:39]} 17. Ng5 {[%clk 00:50:14]}
{[%emt 00:01:42]} Nb6 {[%clk 00:27:45]} {[%emt 00:08:25]} 18. Nxe6 {[%clk
00:48:56]} {[%emt 00:01:48]} Qxe6 {[%clk 00:27:12]} {[%emt 00:01:03]} 19. Bc7
{[%clk 00:48:30]} {[%emt 00:00:56]} Nxa4 {[%clk 00:25:14]} {[%emt 00:02:28]} 20.
Bxd8 {[%clk 00:48:37]} {[%emt 00:00:23]} Rxd8 {[%clk 00:25:27]} {[%emt
00:00:17]} 21. b3 {[%clk 00:47:14]} {[%emt 00:01:52]} Nc3 {[%clk 00:24:17]}
{[%emt 00:01:40]} 22. Qf3 {[%clk 00:46:48]} {[%emt 00:00:56]} Qc8 {[%clk
00:22:22]} {[%emt 00:02:25]} 23. Nf5 {[%clk 00:45:44]} {[%emt 00:01:34]} Re8
{[%clk 00:21:51]} {[%emt 00:01:02]} 24. Qg4 {[%clk 00:43:34]} {[%emt 00:02:39]}
g6 {[%clk 00:21:18]} {[%emt 00:01:03]} 25. Nxe7+ {[%clk 00:43:25]} {[%emt
00:00:39]} 1-0

[Event "Latvijas 2022. gada jauniešu čempionāta fināls"]
[Site "Riga, Latvia"]
[Date "2022.06.14"]
[Round "5.10"]
[White "Zubova, Polina"]
[Black "Jansone, Melanija Luize"]
[Result "0-1"]
[TimeControl "3600+30"]
[WhiteElo "1070"]
[BlackElo "1590"]

1. d4 {[%clk 01:00:58]} Nf6 {[%clk 01:00:55]} {[%emt 00:00:05]} 2. c4 {[%clk
01:01:25]} {[%emt 00:00:03]} g6 {[%clk 01:01:18]} {[%emt 00:00:06]} 3. Nc3
{[%clk 01:01:39]} {[%emt 00:00:17]} Bg7 {[%clk 01:01:41]} {[%emt 00:00:07]} 4.
e4 {[%clk 01:01:51]} {[%emt 00:00:19]} d6 {[%clk 01:02:05]} {[%emt 00:00:05]} 5.
Nf3 {[%clk 01:00:20]} {[%emt 00:02:02]} O-O {[%clk 01:02:17]} {[%emt 00:00:17]}
6. Be2 {[%clk 00:59:39]} {[%emt 00:01:12]} Nbd7 {[%clk 01:02:06]} {[%emt
00:00:41]} 7. Be3 {[%clk 00:58:35]} {[%emt 00:01:34]} e5 {[%clk 01:02:28]}
{[%emt 00:00:07]} 8. d5 {[%clk 00:58:54]} {[%emt 00:00:12]} a5 {[%clk
01:02:20]} {[%emt 00:00:37]} 9. a4 {[%clk 00:58:58]} {[%emt 00:00:27]} Qe7
{[%clk 00:59:16]} {[%emt 00:03:33]} 10. Qd2 {[%clk 00:55:00]} {[%emt 00:04:30]}
b6 {[%clk 00:59:05]} {[%emt 00:00:41]} 11. Bg5 {[%clk 00:50:41]} {[%emt
00:04:48]} Nc5 {[%clk 00:58:55]} {[%emt 00:00:40]} 12. O-O {[%clk 00:49:27]}
{[%emt 00:01:44]} Nb3 {[%clk 00:59:04]} {[%emt 00:00:21]} 13. Qc2 {[%clk
00:49:12]} {[%emt 00:00:44]} Nxa1 {[%clk 00:59:29]} {[%emt 00:00:06]} 14. Rxa1
{[%clk 00:49:28]} {[%emt 00:00:15]} Qd7 {[%clk 00:53:50]} {[%emt 00:06:07]} 15.
h3 {[%clk 00:49:30]} {[%emt 00:00:28]} h6 {[%clk 00:49:54]} {[%emt 00:04:27]}
16. Be3 {[%clk 00:49:47]} {[%emt 00:00:13]} Kh7 {[%clk 00:49:53]} {[%emt
00:00:31]} 17. Nh4 {[%clk 00:45:08]} {[%emt 00:05:10]} Qe7 {[%clk 00:49:58]}
{[%emt 00:00:23]} 18. f4 {[%clk 00:38:38]} {[%emt 00:07:01]} exf4 {[%clk
00:50:08]} {[%emt 00:00:20]} 19. Bxf4 {[%clk 00:38:57]} {[%emt 00:00:12]} Nxe4
{[%clk 00:39:53]} {[%emt 00:10:45]} 20. Qxe4 {[%clk 00:38:13]} {[%emt
00:01:13]} Qxh4 {[%clk 00:40:13]} {[%emt 00:00:09]} 21. Qf3 {[%clk 00:38:31]}
{[%emt 00:00:12]} Bd7 {[%clk 00:39:04]} {[%emt 00:01:39]} 22. Bg3 {[%clk
00:38:14]} {[%emt 00:00:48]} Qd4+ {[%clk 00:35:55]} {[%emt 00:03:34]} 23. Kh1
{[%clk 00:38:21]} {[%emt 00:00:27]} Qd2 {[%clk 00:34:08]} {[%emt 00:02:15]} 24.
Rb1 {[%clk 00:37:42]} {[%emt 00:01:11]} Bf5 {[%clk 00:33:46]} {[%emt 00:00:53]}
25. Rd1 {[%clk 00:36:15]} {[%emt 00:01:56]} Qxb2 {[%clk 00:33:54]} {[%emt
00:00:23]} 26. Nb5 {[%clk 00:34:45]} {[%emt 00:02:00]} Rae8 {[%clk 00:32:45]}
{[%emt 00:01:38]} 27. Bf1 {[%clk 00:34:41]} {[%emt 00:00:34]} Re7 {[%clk
00:25:21]} {[%emt 00:07:55]} 28. Bh4 {[%clk 00:34:12]} {[%emt 00:00:58]} Re4
{[%clk 00:21:41]} {[%emt 00:04:11]} 29. Bg3 {[%clk 00:33:52]} {[%emt 00:00:49]}
Be5 {[%clk 00:19:24]} {[%emt 00:02:48]} 30. Bf2 {[%clk 00:33:35]} {[%emt
00:00:46]} Rf4 {[%clk 00:19:40]} {[%emt 00:00:15]} 0-1

[Event "Latvijas 2022. gada jauniešu čempionāta fināls"]
[Site "Riga, Latvia"]
[Date "2022.06.14"]
[Round "5.11"]
[White "Kuznecova, Marija"]
[Black "Pukite, Elza"]
[Result "1-0"]
[TimeControl "3600+30"]
[WhiteElo "1783"]
[BlackElo "1114"]

1. e4 {[%clk 01:00:59]} {[%emt 02:57:41]} e5 {[%clk 01:00:55]} {[%emt
00:00:06]} 2. Nf3 {[%clk 01:01:25]} {[%emt 00:00:05]} Nc6 {[%clk 01:01:15]}
{[%emt 00:00:10]} 3. d4 {[%clk 01:01:48]} {[%emt 00:00:07]} exd4 {[%clk
01:01:29]} {[%emt 00:00:15]} 4. Nxd4 {[%clk 01:02:11]} {[%emt 00:00:07]} Nf6
{[%clk 01:01:39]} {[%emt 00:00:20]} 5. Nxc6 {[%clk 01:02:33]} {[%emt 00:00:08]}
bxc6 {[%clk 01:01:59]} {[%emt 00:00:10]} 6. e5 {[%clk 01:02:59]} {[%emt
00:00:04]} Qe7 {[%clk 01:02:16]} {[%emt 00:00:13]} 7. Qe2 {[%clk 01:03:22]}
{[%emt 00:00:07]} Nd5 {[%clk 01:02:29]} {[%emt 00:00:17]} 8. c4 {[%clk
01:03:46]} {[%emt 00:00:07]} Ba6 {[%clk 01:02:49]} {[%emt 00:00:09]} 9. Nd2
{[%clk 01:04:08]} {[%emt 00:00:08]} g6 {[%clk 01:03:06]} {[%emt 00:00:13]} 10.
Ne4 {[%clk 01:04:28]} {[%emt 00:00:10]} Qxe5 {[%clk 01:03:10]} {[%emt
00:00:26]} 11. Nf6+ {[%clk 01:04:53]} {[%emt 00:00:06]} Nxf6 {[%clk 01:03:07]}
{[%emt 00:00:33]} 12. Qxe5+ {[%clk 01:05:15]} {[%emt 00:00:08]} Be7 {[%clk
01:03:33]} {[%emt 00:00:04]} 13. Be2 {[%clk 01:04:36]} {[%emt 00:01:08]} d6
{[%clk 01:01:53]} {[%emt 00:02:10]} 14. Qa5 {[%clk 01:04:41]} {[%emt 00:00:25]}
Bc8 {[%clk 01:01:37]} {[%emt 00:00:46]} 15. Qxc7 {[%clk 01:04:22]} {[%emt
00:00:48]} Bd7 {[%clk 01:01:57]} {[%emt 00:00:11]} 16. Bh6 {[%clk 01:04:20]}
{[%emt 00:00:32]} Ne4 {[%clk 01:00:16]} {[%emt 00:02:10]} 17. Bf3 {[%clk
01:02:00]} {[%emt 00:02:50]} Nc5 {[%clk 00:58:46]} {[%emt 00:02:01]} 18. Bxc6
{[%clk 01:01:47]} {[%emt 00:00:42]} Rd8 {[%clk 00:58:35]} {[%emt 00:00:41]} 19.
O-O-O {[%clk 01:01:11]} {[%emt 00:01:06]} Rg8 {[%clk 00:57:59]} {[%emt
00:01:07]} 20. Be3 {[%clk 00:58:09]} {[%emt 00:03:32]} Na6 {[%clk 00:57:14]}
{[%emt 00:01:15]} 21. Bxd7+ {[%clk 00:58:31]} {[%emt 00:00:08]} Rxd7 {[%clk
00:56:44]} {[%emt 00:01:00]} 22. Qc8+ {[%clk 00:58:22]} {[%emt 00:00:39]} Rd8
{[%clk 00:57:04]} {[%emt 00:00:10]} 23. Qxa6 {[%clk 00:58:23]} {[%emt
00:00:28]} f5 {[%clk 00:56:46]} {[%emt 00:00:47]} 24. Qc6+ {[%clk 00:56:47]}
{[%emt 00:02:08]} Kf8 {[%clk 00:56:39]} {[%emt 00:00:36]} 25. Bh6+ {[%clk
00:56:58]} {[%emt 00:00:19]} Kf7 {[%clk 00:57:02]} {[%emt 00:00:08]} 26. Qd5+
{[%clk 00:57:03]} {[%emt 00:00:24]} Kf6 {[%clk 00:56:23]} {[%emt 00:01:10]} 27.
Rhe1 {[%clk 00:57:13]} {[%emt 00:00:19]} 1-0